Cogmind - Beta 14 @@@ ROGUE MODE // 2024.10.18 @ 15:59:56 Player: N.W.L Result: Destroyed by TB-PYB(Y) with Heavy Autocannon Performance ------------- Evolutions (5) 2500 Regions Visited (17) 3400 Robots Destroyed (279) 1395 Value Destroyed (9844) 9844 Prototype IDs (70) 1400 Alien Tech Used (0) 0 Bonus (1973) 1973 TOTAL SCORE: 20512 Bonus ------- High Alert Combat Kills 205 Follower Combat Kills 1533 Aligned with FarCom 300 Met Data Miner 300 MAIN.C Attacked Warlord 500 Friendly Fire -865 Cogmind --------- Core Integrity 0/1000 Matter 105/300 Energy 89/100 System Corruption 6% Temperature Warm (147) Movement Core (50) Location -5/Warlord Parts ------- > --- POWER (1) -------- (None) > --- PROPULSION (4) --- (None) > --- UTILITY (8) ------ Structural Scanner > --- WEAPON (4) ------- (None) > --- INVENTORY (5) ---- Armored Treads Advanced Heat Sink Makeshift Terrain Scan Processor Dirty Datajack (20) IN-MT5's Pitchfork "Insurrection" (19) Peak State ------------ > --- POWER ------------ Fission Core > --- PROPULSION ------- Overtuned Treads Overtuned Treads Overtuned Treads Armored Medium Treads > --- UTILITY ---------- Scrap Suit Advanced Power Amplifier Improved Coolant Injector Huge Storage Unit Enhanced Optical Array Energy Mantle Tech Extrapolator > --- WEAPON ----------- Heavy Dispersion Rifle Heavy Dispersion Rifle Improved Remote Datajack DM-GVY's Chainsaw > --- INVENTORY -------- Makeshift Microdissipator Network Humpback Structural Scanner Makeshift Trap Scanner Seismic Detector Heavy Servo Lattice ECM Suite ID Mask Experimental Force Field Experimental Force Field Experimental Force Field Experimental Force Field Thief Drone Bay Compact Tesla Bomb Launcher Compact Tesla Bomb Launcher Compact Tesla Bomb Launcher Ragnarok Missile Launcher Ragnarok Missile Launcher Ragnarok Missile Launcher LU-1G1's Laser Shovel IN-MT5's Pitchfork "Insurrection" Deploy-a-Sentry PL-3XN's Ring of Power PL-3XN's Ring of Power [Rating: 110] Favorites ----------- Power Improved Deuterium Engine Engine Improved Deuterium Engine Power Core Hybrid Fission Core Propulsion Overtuned Treads Treads Overtuned Treads Leg Carbon-fiber Leg Wheel Wheel Hover Unit Antigrav System Utility 0b10 Alert Chip Device Scrap Suit Storage Humpback Processor 0b10 Alert Chip Hackware Hacking Suite Protection Hardened Medium Armor Plating Weapon Overtuned Pulse Rifle Energy Gun Overtuned Pulse Rifle Energy Cannon Beam Cannon Ballistic Gun Overtuned Barrage Gun Ballistic Cannon Siege Cannon Launcher Grenade Launcher Special Weapon Improved Remote Datajack Impact Weapon Mace Slashing Weapon DM-GVY's Chainsaw Special Melee Weapon Dirty Datajack Build | -11 -10 -10 -10 -9 -8 -8 -8 -8 -6 -6 -6 -6 -5 -5 -5 -5 -5 ------- Run | Yrd Mat Min Exi Min Mat Sto Rec Scr Fac Low Low Dat Pro Fac Upp Upp War Slots Evolved 10 | . . . . . 4 . . . 4 . . . . 2 . . . Power . | . . . . . . . . . . . . . . . . . . Propulsion 2 | . . . . . 1 . . . 1 . . . . . . . . Utility 6 | . . . . . 2 . . . 2 . . . . 2 . . . Weapon 2 | . . . . . 1 . . . 1 . . . . . . . . Parts Attached 371 | . 18 9 7 1 10 39 17 111 5 7 2 . 16 77 24 23 5 Power 16 | . 1 2 . . . 2 . 3 1 . . . 1 4 1 1 . Engine 10 | . 1 2 . . . 2 . 2 . . . . . 1 1 1 . Core 6 | . . . . . . . . 1 1 . . . 1 3 . . . Reactor . | . . . . . . . . . . . . . . . . . . Propulsion 59 | . 2 1 . . . 10 2 19 1 1 . . . 11 4 8 . Treads 50 | . 2 1 . . . 10 2 19 1 1 . . . 10 3 1 . Leg 6 | . . . . . . . . . . . . . . 1 . 5 . Wheel 2 | . . . . . . . . . . . . . . . . 2 . Hover 1 | . . . . . . . . . . . . . . . 1 . . Flight . | . . . . . . . . . . . . . . . . . . Utility 116 | . 2 3 5 . 4 8 2 33 1 3 1 . 6 29 9 9 1 Device 68 | . . 1 2 . . 4 1 19 1 2 . . 5 23 6 4 . Storage 14 | . 2 1 1 . . . . 5 . 1 1 . . . . 2 1 Processor 13 | . . . . . 1 1 . 5 . . . . . 4 2 . . Hackware 1 | . . . . . . . . . . . . . . 1 . . . Protection 20 | . . 1 2 . 3 3 1 4 . . . . 1 1 1 3 . Artifact . | . . . . . . . . . . . . . . . . . . Weapon 180 | . 13 3 2 1 6 19 13 56 2 3 1 . 9 33 10 5 4 Energy Gun 67 | . 2 1 1 . 2 11 7 31 2 2 . . 2 6 . . . Energy Cannon 13 | . 4 . . . 3 4 . 2 . . . . . . . . . Ballistic Gun 13 | . . . . . 1 . . 12 . . . . . . . . . Ballistic Cannon 2 | . . . . . . . . . . . . . . 2 . . . Launcher 30 | . 7 2 . . . 2 . 1 . . 1 . 3 7 4 2 1 Special Weapon 23 | . . . . 1 . 1 1 5 . . . . . 11 2 1 1 Impact Weapon 1 | . . . . . . 1 . . . . . . . . . . . Slashing Weapon 21 | . . . . . . . 1 4 . 1 . . 4 7 1 2 1 Piercing Weapon . | . . . . . . . . . . . . . . . . . . Special Melee Weapon 10 | . . . 1 . . . 4 1 . . . . . . 3 . 1 Unidentified Prototypes 21 | . . 1 . . 1 6 1 2 . . . . . 10 . . . Corrupted Parts 3 | . . . . . . . . . . . . . . . . 3 . System Corruption 30 | . . . . . . . . . . . . . . . . 30 . Parts Lost 61 | . . 4 . . . . . 12 . 1 1 . 1 17 6 13 6 Power 9 | . . 1 . . . . . 2 . . . . . 3 . 3 . Propulsion 19 | . . 1 . . . . . 5 . . . . . 7 4 1 1 Utility 18 | . . . . . . . . 1 . 1 1 . 1 5 1 6 2 Weapon 15 | . . 2 . . . . . 4 . . . . . 2 1 3 3 Highest Loss Streak 6 | . . 4 . . . . . 5 . 1 1 . 1 5 4 4 6 To Critical Strikes 2 | . . . . . . . . 2 . . . . . . . . . Average Slot Usage (%) 89 | . 99 99 83 85 77 98 100 91 86 91 86 73 86 83 85 60 32 Engine 7 | . 14 13 14 14 9 8 9 7 . . . . . . 4 1 . Core 1 | . . . . . . . . 1 5 6 4 . 2 4 . . . Treads 24 | . 27 28 28 28 18 26 27 26 26 26 26 26 26 18 6 2 . Device 7 | . . . . . . 7 9 3 6 19 17 13 23 22 21 13 10 Storage 8 | . 27 25 14 14 9 9 9 7 6 5 5 6 6 5 5 4 7 Processor 12 | . . . . . 7 9 9 16 13 6 4 . . 6 16 10 . Protection 2 | . . 2 13 14 16 10 9 . . . . . . . 1 2 . Energy Gun 14 | . 4 2 8 10 8 21 24 15 26 26 24 20 22 10 5 1 . Ballistic Gun 2 | . . . . . 1 1 . 3 . . . . . . . . . Launcher 1 | . 19 25 . . . . . . . . 1 6 . . . 3 1 Slashing Weapon 4 | . . . . . . . . 6 . . . . 2 3 2 2 4 Peak Build Rating 110 | . 8 14 27 27 40 43 46 59 65 70 67 51 67 110 103 96 50 Average Rating 50 | . 7 9 19 23 30 35 41 50 64 63 59 51 58 86 95 60 32 On Entrance 41 | 6 6 8 9 27 13 26 42 39 51 65 65 51 51 64 92 96 30 Naked Turns 4 | . . . . . . . . . . . . . . . . 4 . Heaviest Build 226 | 12 55 59 94 94 113 116 103 220 226 109 108 102 122 142 118 208 217 Greatest Support 106 | 20 40 40 40 40 40 60 60 63 72 72 72 72 72 106 77 45 10 Greatest Overweight (x) 73 | . 1 1 2 2 2 2 1 73 3 1 1 1 2 7 4 39 69 Average Overweight (x) 5 | . . 1 1 2 2 1 1 11 3 . . 1 1 1 3 10 14 Largest Inventory Capacity 35 | . 20 20 25 25 25 25 25 35 35 25 25 25 25 25 25 35 35 Average Capacity 26 | . 16 20 21 25 25 25 25 27 35 24 23 25 25 25 25 27 33 Most Carried 35 | . 18 20 23 25 25 25 25 35 34 25 25 23 25 25 25 30 30 Average Carried 23 | . 12 18 20 23 24 24 24 23 31 23 21 23 23 23 24 21 26 Final Capacity 35 | 8 20 20 25 25 25 25 25 35 35 25 25 25 25 25 25 35 5 Final Carried 35 | 6 18 16 23 24 25 25 25 35 31 25 23 23 24 24 25 30 5 Class Distribution -------------------- 44% | Hauler-Mutant 12% | Mutant 12% | Scavenger-Scrapper 8% | Scavenger-Skirmisher 4% | Scavenger-Mutant 4% | Commander-Skirmisher 3% | Commander-Tank Dominant Class ---------------- Mutant | -10/Materials Mutant | -10/Mines Mutant | -10/Exiles Mutant | -9/Mines Bomber | -8/Materials Scavenger-Skirmisher | -8/Storage Commander-Skirmisher | -8/Recycling Hauler-Mutant | -8/Scraptown Scavenger-Scrapper | -6/Factory Scavenger-Scrapper | -6/Lower Caves Scavenger-Scrapper | -6/Lower Caves Scavenger-Scrapper | -6/Data Miner Scavenger-Scrapper | -5/Proximity Caves Scavenger-Scrapper | -5/Factory Mutant | -5/Upper Caves Hauler-Mutant | -5/Upper Caves Hauler-Mutant | -5/Warlord Resources | -11 -10 -10 -10 -9 -8 -8 -8 -8 -6 -6 -6 -6 -5 -5 -5 -5 -5 ----------- Run | Yrd Mat Min Exi Min Mat Sto Rec Scr Fac Low Low Dat Pro Fac Upp Upp War Matter Collected 6625 | 200 445 323 . 115 142 475 198 2045 . 130 5 . 200 1318 441 575 13 Remotely . | . . . . . . . . . . . . . . . . . . Salvage Created 14078 | . 774 110 . 130 256 1856 1102 6510 86 167 62 . 334 1993 356 342 . Parts 692 | . 44 8 . 4 10 96 36 326 3 1 5 . 21 100 21 17 . Haulers Intercepted 12 | . 2 . . . 2 5 . . . . . . . 3 . . . Recyclers Shooed 14 | . 2 . . . . 1 2 . 5 . . . . 4 . . . Parts Field Recycled . | . . . . . . . . . . . . . . . . . . Retrieved Matter . | . . . . . . . . . . . . . . . . . . Parts Self-Destructed 43 | . . . . . . . . . . 1 5 . 15 . 20 2 . Prevented 16 | . . . . . . . . . . . . . . . 2 14 . Kills | -11 -10 -10 -10 -9 -8 -8 -8 -8 -6 -6 -6 -6 -5 -5 -5 -5 -5 ------- Run | Yrd Mat Min Exi Min Mat Sto Rec Scr Fac Low Low Dat Pro Fac Upp Upp War Combat Hostiles Destroyed 221 | . 13 5 . 4 1 21 10 102 1 5 3 . 11 31 9 5 . Melee 5 | . . . . . . . . . . . . . 1 2 2 . . Guns 141 | . . 1 . 4 1 16 9 97 1 2 2 . . 6 2 . . Cannons 18 | . 3 . . . . 2 . 1 . . . . . 12 . . . AOE 42 | . 9 4 . . . 3 . 1 . . . . 10 8 4 3 . Classes Destroyed 31 | . 8 1 . 1 1 . 3 13 . 1 . . 1 1 . 1 . Worker 13 | . 2 . . . . 2 1 . . . . . . 8 . . . Builder 5 | . 1 . . . . 1 . . . . . . . 3 . . . Tunneler 1 | . . . . . . . . 1 . . . . . . . . . Hauler 12 | . 2 . . . 2 5 . . . . . . . 3 . . . Recycler 20 | . 4 . . . . 6 6 . . . . . . 4 . . . Minesweeper 2 | . . . . . . . . 1 . . . . . . . 1 . Operator 2 | . 1 . . . . 1 . . . . . . . . . . . Turret 1 | . . . . . . . . 1 . . . . . . . . . Watcher 10 | . 3 . . . 3 1 . . 1 . . . . 2 . . . Swarmer 31 | . 3 . . . . 3 . . . . 2 . 10 8 5 . . Grunt 35 | . 10 4 . 3 . 6 1 2 . 2 . . . 4 . 3 . Brawler 2 | . . . . . . . 2 . . . . . . . . . . Duelist 2 | . . . . . . . 1 . . 1 . . . . . . . Sentry 22 | . . . . . 1 12 3 . 1 . . . . 3 1 1 . Demolisher 1 | . . 1 . . . . . . . . . . . . . . . Specialist 2 | . . . . . . . . . . . . . . 2 . . . Hunter 8 | . . . . . . . . . . . . . 1 5 2 . . Programmer 13 | . . . . . . . 2 . . 1 . . . 9 1 . . Behemoth 1 | . . . . . . . . . . . . . . . . 1 . Bolteater 4 | . . . . . . . . 4 . . . . . . . . . Federalist 15 | . . . . . . . . 15 . . . . . . . . . Explorer 9 | . . . . . . . . 9 . . . . . . . . . Ranger 9 | . . . . . . . . 9 . . . . . . . . . Guru 12 | . . . . . . . . 12 . . . . . . . . . Scientist 6 | . . . . . . . . 6 . . . . . . . . . Scrapper 31 | . . . . . . . . 31 . . . . . . . . . Elite 20 | . . . . . . . . 20 . . . . . . . . . Zionite 2 | . . . . . . . . 2 . . . . . . . . . Tinkerer 1 | . . . . . . . . 1 . . . . . . . . . Master Thief 2 | . . . . . . . . . . 1 1 . . . . . . Assembled 1 | . . . . 1 . . . . . . . . . . . . . Thug 1 | . . . . . . . . 1 . . . . . . . . . Best Kill Streak 14 | . 4 2 . 3 2 6 5 7 1 3 2 . 5 14 5 3 . Combat Bots Only 7 | . 3 2 . 3 1 4 3 7 1 3 2 . 5 5 5 3 . Max Kills in Single Turn 4 | . 3 2 . 1 1 3 2 2 1 1 1 . 4 4 4 1 . Gunslinging . | . . . . . . . . . . . . . . . . . . Exploded 4 | . 3 2 . . . 3 . 1 . . . . 4 4 4 1 . Melee 1 | . . . . . . . . . . . . . 1 1 1 . . Uniques/NPCs Destroyed 2 | . . . . . . . 1 1 . . . . . . . . . 01-MTF (-8/Recycling) Triborg (-8/Scraptown) Combat | -11 -10 -10 -10 -9 -8 -8 -8 -8 -6 -6 -6 -6 -5 -5 -5 -5 -5 -------- Run | Yrd Mat Min Exi Min Mat Sto Rec Scr Fac Low Low Dat Pro Fac Upp Upp War Hostile Shots Fired 919 | . 20 17 . 7 21 53 11 243 2 12 8 . 24 309 43 131 18 Missed 262 | . 10 3 . 2 5 19 1 65 1 2 1 . 3 89 8 45 8 Damage Taken 12162 | . 139 547 . 71 155 697 363 2230 19 145 22 . 422 4360 647 1436 909 Core 1381 | . 29 74 . . . 34 30 145 . 15 . . 44 294 102 265 349 Absorbed by Shields 86 | . . . . . . . . . . . . . . 77 . 9 . Reduced by Siege Mode 184 | . . . . . . . . . . . . . . 184 . . . Ignored by Resistances 25 | . . . . . . . . . . . . . . 25 . . . Regen/Repaired (Parts) 220 | . . . . . . 177 . 23 . . . . 10 10 . . . Core Remaining (%) 78 | 100 . . . 58 . . . 62 . . . . 93 . . . . Volleys Fired 861 | . 43 6 . 7 19 72 32 514 12 13 12 . 9 93 16 9 4 Largest 4 | . 2 2 . 1 3 3 3 3 4 4 3 . 4 4 3 2 1 Hottest 320 | . 110 60 . 100 140 190 183 242 320 320 240 . 320 320 192 140 49 Shots Fired 1841 | . 80 10 . 17 40 193 86 1117 25 44 24 . 18 142 25 16 4 Gun 1625 | . 25 2 . 10 22 156 86 1107 25 44 22 . 13 91 21 1 . Cannon 127 | . 30 . . . 18 36 . 9 . . . . . 34 . . . Launcher 82 | . 25 8 . . . 1 . 1 . . 2 . 5 17 4 15 4 Special 7 | . . . . 7 . . . . . . . . . . . . . Kinetic 772 | . . . . . 1 8 . 729 . . . . . 34 . . . Thermal 983 | . 55 . . 17 37 184 86 387 25 44 22 . 13 91 21 1 . Explosive 52 | . 25 8 . . . 1 . 1 . . 2 . 5 4 . 6 . Electromagnetic 34 | . . 2 . . 2 . . . . . . . . 13 4 9 4 Robot Hit Streak 18 | . 8 6 . 4 17 17 17 18 10 17 4 . 3 13 4 6 2 Robot Miss Streak 9 | . 3 3 . 1 1 4 5 9 3 2 4 . 2 4 3 1 . Penetration Max 2 | . . . . . . . . 2 . . . . . 2 . . . Secondary Targets 4 | . . . . . . 2 1 1 . . . . . . . . . Max Gunslinging Chain 1 | . . . . . . 1 1 1 . . . . . . . . . Autonomous 84 | . . . . 10 19 . . 55 . . . . . . . . . Shots Hit Robots 1266 | . 41 6 3 8 25 113 81 762 17 35 13 . 15 110 20 15 2 Core Hits 570 | . 35 12 . 5 6 52 22 328 5 9 3 . 15 59 9 10 . Critical Kills 7 | . . . . . . . . 3 . . . . . 2 2 . . Critical Parts Destroyed 7 | . . . . . . . . 1 . . . . . 4 2 . . Critical Strikes 62 | . 2 . . . . 8 6 16 3 3 1 . 2 14 7 . . Burn 40 | . 2 . . . . 8 6 12 3 3 1 . 2 3 . . . Destroy 14 | . . . . . . . . 4 . . . . . 6 4 . . Blast 3 | . . . . . . . . . . . . . . 3 . . . Sever 5 | . . . . . . . . . . . . . . 2 3 . . Melee Attacks 106 | . . . 3 . . 1 25 10 . . . . 6 38 8 11 4 Impact 1 | . . . . . . 1 . . . . . . . . . . . Slashing 66 | . . . . . . . . 9 . . . . 6 38 7 3 3 Piercing 10 | . . . . . . . . . . . . . . . 1 8 1 Sneak Attacks 48 | . . . 3 . . . 25 3 . . . . 1 8 5 3 . Combat Hostiles 27 | . . . . . . . 23 . . . . . . 1 2 1 . Follow-up Attacks . | . . . . . . . . . . . . . . . . . . Damage Inflicted 29381 | . 1309 282 . 235 679 2408 1213 10683 373 776 459 . 1516 7091 1149 1123 85 Guns 18004 | . 234 22 . 235 569 1848 1199 10162 373 776 331 . 132 1676 447 . . Cannons 4206 | . 313 . . . 110 337 . 174 . . . . . 3272 . . . Explosions 4705 | . 751 255 . . . 220 . 160 . . 128 . 921 1100 194 939 37 Melee 2426 | . . . . . . . . 187 . . . . 463 1043 508 184 41 Ramming 40 | . 11 5 . . . 3 14 . . . . . . . . . 7 Kinetic 5545 | . . . . . . 28 . 2245 . . . . . 3272 . . . Thermal 16600 | . 547 . . 235 636 2157 1199 8091 373 776 331 . 132 1676 447 . . Explosive 3750 | . 751 255 . . . 220 . 160 . . 128 . 921 764 . 551 . Electromagnetic 1020 | . . 22 . . 43 . . . . . . . . 336 194 388 37 Impact . | . . . . . . . . . . . . . . . . . . Slashing 2411 | . . . . . . . . 187 . . . . 463 1043 506 171 41 Piercing 15 | . . . . . . . . . . . . . . . 2 13 . Highest Corruption 38 | . 2 2 2 2 . 2 2 . . . . . . 5 8 38 38 Average Corruption 6 | . 2 2 2 2 . 2 2 . . . . . . 3 5 23 15 Corruption Purged . | . . . . . . . . . . . . . . . . . . Corruption Blocked . | . . . . . . . . . . . . . . . . . . Effects 305 | . 1 16 11 5 . 38 38 . . . . . . 38 48 98 12 Message Errors 83 | . . 7 7 3 . 9 10 . . . . . . 8 13 21 5 Matter Fused 74 | . 1 3 1 2 . 8 10 . . . . . . 10 15 22 2 Heat Flow Errors 43 | . . 1 1 . . 3 6 . . . . . . 5 4 20 3 Energy Discharges 37 | . . 1 1 . . 6 3 . . . . . . 6 5 14 1 Parts Rejected 2 | . . . . . . . 1 . . . . . . . 1 . . Parts Fused 2 | . . . 1 . . . . . . . . . . . . 1 . Data Loss (minor) 27 | . . 2 . . . 6 2 . . . . . . 2 3 12 . Data Loss (major) 13 | . . 1 . . . 2 1 . . . . . . 2 3 3 1 Misfires 14 | . . 1 . . . 3 3 . . . . . . 2 3 2 . Alerts 5 | . . . . . . 1 1 . . . . . . . 1 2 . Misdirections 1 | . . . . . . . . . . . . . . . . 1 . Weapon Failures 4 | . . . . . . . 1 . . . . . . 3 . . . Overload Shots . | . . . . . . . . . . . . . . . . . . Overflow Damage 1183 | . 38 . . . . 7 . 48 . . . . 248 723 59 60 . Projectiles 501 | . 5 . . . . . . . . . . . . 496 . . . Explosions 106 | . 33 . . . . 7 . . . . . . 57 3 . 6 . Melee 576 | . . . . . . . . 48 . . . . 191 224 59 54 . Knockbacks 9 | . . . . . . . . . . . . . . 8 . . 1 Impact 1 | . . . . . . . . . . . . . . . . . 1 Kinetic 7 | . . . . . . . . . . . . . . 7 . . . Secondary 1 | . . . . . . . . . . . . . . 1 . . . Self-Inflicted Damage 370 | . 41 24 . . . . . . . . . . 84 42 . 121 58 Shots 18 | . 2 2 . . . . . . . . . . 2 2 . 7 3 Rammed 8 | . 2 1 . . . . 2 . . . . . . 1 . . 2 Targets Rammed 10 | . 2 1 . . . 1 3 . . . . . . 1 . . 2 Kicked . | . . . . . . . . . . . . . . . . . . Crushed 2 | . . . . . . 1 1 . . . . . . . . . . Highest Temperature 844 | . 201 159 215 96 224 450 363 470 408 844 200 . 200 316 186 246 342 Average Temperature 86 | . 85 49 109 43 78 115 79 64 151 255 141 . 101 97 74 68 143 Received Heat Transfer 2273 | . 42 30 . 53 18 252 96 735 27 12 . . . 530 9 469 . Effects 24 | . . . 1 . . 1 . 2 5 10 . . . 2 . . 3 Energy Bleed 6 | . . . . . . 1 . 1 1 3 . . . . . . . Interference 10 | . . . 1 . . . . 1 3 . . . . 2 . . 3 Damage (minor) 3 | . . . . . . . . . 1 2 . . . . . . . Damage (major) 5 | . . . . . . . . . . 5 . . . . . . . Siege Activations 4 | . . . . . . . . . . . . . . 4 . . . Total Turns 158 | . . . . . . . . . . . . . . 158 . . . Longest Duration 60 | . . . . . . . . . . . . . . 60 . . . Robots Corrupted 4 | . . . . . . . . . . . . . . 1 1 2 . Combat Hostiles 3 | . . . . . . . . . . . . . . . 1 2 . Parts Fried 10 | . . . . . 1 1 . . . . . . . 4 2 2 . Impact Corruptions 1 | . . . . . . . . . . . . . . 1 . . . Robots Melted 14 | . 1 . . . . . 1 3 1 3 1 . . 4 . . . Combat Hostiles 12 | . 1 . . . . . 1 3 . 3 1 . . 3 . . . Parts Melted 97 | . 5 . . . 2 12 9 49 1 8 3 . . 8 . . . Heat Transferred 29928 | . 1517 . . 296 851 4773 2822 11613 1200 2050 850 . 500 3012 444 . . Parts Sabotaged 2 | . . . . . . . . . . . . . . 2 . . . Parts Stolen 11 | . . . . . . . . . . 1 4 . . . . 6 . Parts Stripped . | . . . . . . . . . . . . . . . . . . Power Chain Reactions . | . . . . . . . . . . . . . . . . . . Alert | -11 -10 -10 -10 -9 -8 -8 -8 -8 -6 -6 -6 -6 -5 -5 -5 -5 -5 ------- Run | Yrd Mat Min Exi Min Mat Sto Rec Scr Fac Low Low Dat Pro Fac Upp Upp War Peak Influence 865 | . 316 131 . 92 77 249 286 . 53 . . . . 865 . . . Initial 69 | . . 49 . . . 32 48 . . . . . . 69 . . . Average 149 | . 173 70 . 84 36 105 60 . 26 . . . . 378 . . . Maximum Alert Level 3 | . 1 . . . . 1 1 . . . . . . 3 . . . Low Security (%) 80 | . 68 100 . 100 100 89 88 . 100 . . . . 47 . . . Level 1 11 | . 31 . . . . 10 11 . . . . . . 9 . . . Level 2 2 | . . . . . . . . . . . . . . 13 . . . Level 3 5 | . . . . . . . . . . . . . . 28 . . . Level 4 . | . . . . . . . . . . . . . . . . . . Level 5 . | . . . . . . . . . . . . . . . . . . High Security . | . . . . . . . . . . . . . . . . . . Max Security . | . . . . . . . . . . . . . . . . . . Squads Dispatched 19 | . 4 . . . . 2 . . . . . . . 13 . . . Investigation 6 | . 3 . . . . 1 . . . . . . . 2 . . . Extermination 4 | . . . . . . . . . . . . . . 4 . . . Reinforcement 6 | . 1 . . . . . . . . . . . . 5 . . . Assault 2 | . . . . . . . . . . . . . . 2 . . . Garrison 1 | . . . . . . 1 . . . . . . . . . . . Intercept . | . . . . . . . . . . . . . . . . . . Searches Triggered . | . . . . . . . . . . . . . . . . . . Data Miner Redirects 3 | . . . . . . . . . . . . . . 3 . . . Construction Impeded 1 | . . . . . . . . . . . . . . 1 . . . Haulers Reinforced 1 | . . . . . . . . . . . . . . 1 . . . Active Scanning Responses . | . . . . . . . . . . . . . . . . . . Cargo Convoy Interrupts 1 | . . . . . . . . . . . . . . 1 . . . Stealth | -11 -10 -10 -10 -9 -8 -8 -8 -8 -6 -6 -6 -6 -5 -5 -5 -5 -5 --------- Run | Yrd Mat Min Exi Min Mat Sto Rec Scr Fac Low Low Dat Pro Fac Upp Upp War Distress Signals 2 | . 1 . . . . 1 . . . . . . . . . . . Communications Jammed . | . . . . . . . . . . . . . . . . . . Distress Signals . | . . . . . . . . . . . . . . . . . . Times Spotted 268 | . 16 6 . 5 6 28 20 70 4 6 6 . 10 66 9 13 3 Peak Tracking Total 13 | . 4 2 . 3 3 4 9 10 2 3 4 . 5 13 5 5 3 Tactical Retreats 35 | . . . . . . . . 29 . . . . . 4 . 2 . ID Masks Used 1 | . . . . . . . . . . . . . . 1 . . . IFF Responses 277 | . . . . . . . . . . . . . . 277 . . . Traps | -11 -10 -10 -10 -9 -8 -8 -8 -8 -6 -6 -6 -6 -5 -5 -5 -5 -5 ------- Run | Yrd Mat Min Exi Min Mat Sto Rec Scr Fac Low Low Dat Pro Fac Upp Upp War Traps Triggered 9 | . 2 . . . . 5 . . . . . . . . . . 2 Indirectly . | . . . . . . . . . . . . . . . . . . Trap Hack Attempts . | . . . . . . . . . . . . . . . . . . Triggered . | . . . . . . . . . . . . . . . . . . Disarmed . | . . . . . . . . . . . . . . . . . . Reprogrammed . | . . . . . . . . . . . . . . . . . . Reused 5 | . . . . . . . . . . . . . . . . . 5 Traps Extracted . | . . . . . . . . . . . . . . . . . . Installed 6 | . . . . . . . . . . . . . . . . . 6 Triggered 9 | . . . . . . . . . . . . . . . 1 . 8 Most Traps Carried 9 | . . . . . . . . . . . . . . . . 9 7 Machines | -11 -10 -10 -10 -9 -8 -8 -8 -8 -6 -6 -6 -6 -5 -5 -5 -5 -5 ---------- Run | Yrd Mat Min Exi Min Mat Sto Rec Scr Fac Low Low Dat Pro Fac Upp Upp War Machines Disabled 30 | . 2 . . . . 5 1 16 . 1 . . . 4 . . 1 Max in Single Turn 1 | . 1 . . . . 1 1 1 . 1 . . . 1 . . 1 Machines Repaired . | . . . . . . . . . . . . . . . . . . Machines Dismantled 2 | . . . . . . 1 . 1 . . . . . . . . . Machines Sabotaged . | . . . . . . . . . . . . . . . . . . Overloaded Fab Kills . | . . . . . . . . . . . . . . . . . . Hacking | -11 -10 -10 -10 -9 -8 -8 -8 -8 -6 -6 -6 -6 -5 -5 -5 -5 -5 --------- Run | Yrd Mat Min Exi Min Mat Sto Rec Scr Fac Low Low Dat Pro Fac Upp Upp War Machines Accessed 59 | . 8 1 2 . 3 16 10 2 1 1 . 3 . 10 2 . . Terminals 31 | . 7 . . . 3 11 6 . . . . . . 4 . . . Fabricators 1 | . . . . . . . . . . . . . . 1 . . . Repair Stations 4 | . . . . . . 2 . . 1 . . . . 1 . . . Recycling Units 10 | . 1 . . . . 2 4 . . . . . . 3 . . . Scanalyzers . | . . . . . . . . . . . . . . . . . . Garrison Access 2 | . . . . . . 1 . . . . . . . 1 . . . Total Hacks 172 | . 23 1 2 . 10 41 36 10 3 1 . 22 . 21 2 . . Successful 100 | . 9 1 2 . 5 19 21 10 1 1 . 22 . 7 2 . . Failed 72 | . 14 . . . 5 22 15 . 2 . . . . 14 . . . Catastrophic 9 | . 2 . . . . 3 1 . . . . . . 3 . . . Database Lockouts . | . . . . . . . . . . . . . . . . . . Manual 77 | . 16 . 1 . 9 16 27 . . . . . . 8 . . . Terminals 83 | . 20 . . . 10 22 21 . . . . . . 10 . . . Fabricators 3 | . . . . . . . . . . . . . . 3 . . . Repair Stations 14 | . . . . . . 9 . . 3 . . . . 2 . . . Recycling Units 29 | . 3 . . . . 6 15 . . . . . . 5 . . . Scanalyzers . | . . . . . . . . . . . . . . . . . . Garrison Access 5 | . . . . . . 4 . . . . . . . 1 . . . Terminal Hacks 51 | . 1 1 2 . 1 4 6 10 . 1 . 22 . 1 2 . . Record 9 | . . . 1 . . . . 4 . . . 4 . . . . . Part Schematic 11 | . . . . . . . . . . . . 11 . . . . . Robot Schematic 4 | . . . . . . . . . . . . 4 . . . . . Robot Analysis 11 | . 1 . . . . . 4 6 . . . . . . . . . Prototype ID Bank 4 | . . . . . . . 1 . . . . 3 . . . . . Open Door 5 | . . 1 . . . 1 . . . 1 . . . . 2 . . Branch Access Points 1 | . . . . . 1 . . . . . . . . . . . . Terminal Index 1 | . . . . . . . . . . . . . . 1 . . . Unreport Threat 2 | . . . . . . 2 . . . . . . . . . . . Hauler Manifests 1 | . . . . . . 1 . . . . . . . . . . . Registered Components 1 | . . . . . . . 1 . . . . . . . . . . Derelict Proto ID Bank 1 | . . . 1 . . . . . . . . . . . . . . Fabricator Hacks 2 | . . . . . . . . . . . . . . 2 . . . Load Schematic 1 | . . . . . . . . . . . . . . 1 . . . Build 1 | . . . . . . . . . . . . . . 1 . . . Repair Station Hacks 8 | . . . . . . 6 . . 1 . . . . 1 . . . Scan Component 5 | . . . . . . 3 . . 1 . . . . 1 . . . Repair 3 | . . . . . . 3 . . . . . . . . . . . Recycling Unit Hacks 7 | . 1 . . . . 1 3 . . . . . . 2 . . . Retrieve Components 7 | . 1 . . . . 1 3 . . . . . . 2 . . . Scanalyzer . | . . . . . . . . . . . . . . . . . . Garrison Access Hacks . | . . . . . . . . . . . . . . . . . . Unauthorized Hacks 31 | . 7 . . . 4 8 12 . . . . . . . . . . Terminals 22 | . 6 . . . 4 6 6 . . . . . . . . . . Botnet 1 | . . . . . . . 1 . . . . . . . . . . Operators 2 | . 1 . . . 1 . . . . . . . . . . . . Skim 19 | . 5 . . . 3 6 5 . . . . . . . . . . Fabricators . | . . . . . . . . . . . . . . . . . . Repair Stations . | . . . . . . . . . . . . . . . . . . Recycling Units 9 | . 1 . . . . 2 6 . . . . . . . . . . Monitor 1 | . . . . . . . 1 . . . . . . . . . . Reject 3 | . . . . . . 1 2 . . . . . . . . . . Recyclers 1 | . . . . . . . 1 . . . . . . . . . . Mask 3 | . . . . . . 1 2 . . . . . . . . . . Tunnel 1 | . 1 . . . . . . . . . . . . . . . . Scanalyzers . | . . . . . . . . . . . . . . . . . . Garrison Access . | . . . . . . . . . . . . . . . . . . Data Cores Recovered . | . . . . . . . . . . . . . . . . . . Used . | . . . . . . . . . . . . . . . . . . Hacking Detections 41 | . 6 . . . 2 15 8 . 1 . . . . 9 . . . Full Trace Events 7 | . 2 . . . 1 1 1 . . . . . . 2 . . . Feedback Events . | . . . . . . . . . . . . . . . . . . Feedback Blocked . | . . . . . . . . . . . . . . . . . . Robot Schematics Acquired 4 | . . . . . . . . . . . . 4 . . . . . Robots Built . | . . . . . . . . . . . . . . . . . . Authchips . | . . . . . . . . . . . . . . . . . . Time . | . . . . . . . . . . . . . . . . . . Total Robot Build Rating . | . . . . . . . . . . . . . . . . . . Part Schematics Acquired 34 | . . . . . . . . 9 1 7 . 11 . 5 1 . . Parts Built 1 | . . . . . . . . . . . . . . 1 . . . Authchips . | . . . . . . . . . . . . . . . . . . Time 76 | . . . . . . . . . . . . . . 76 . . . Total Part Build Rating 5 | . . . . . . . . . . . . . . 5 . . . Parts Repaired 3 | . . . . . . 3 . . . . . . . . . . . Time 143 | . . . . . . 143 . . . . . . . . . . . Parts Recycled . | . . . . . . . . . . . . . . . . . . Recycled Matter . | . . . . . . . . . . . . . . . . . . Retrieved Matter . | . . . . . . . . . . . . . . . . . . Retrieved Components 30 | . 9 . . . . . 12 . . . . . . 9 . . . Parts Scanalyzed . | . . . . . . . . . . . . . . . . . . Part Schematics Acquired . | . . . . . . . . . . . . . . . . . . Parts Damaged . | . . . . . . . . . . . . . . . . . . Bothacking | -11 -10 -10 -10 -9 -8 -8 -8 -8 -6 -6 -6 -6 -5 -5 -5 -5 -5 ------------ Run | Yrd Mat Min Exi Min Mat Sto Rec Scr Fac Low Low Dat Pro Fac Upp Upp War Used RIF Installer . | . . . . . . . . . . . . . . . . . . Robots Hacked 6 | . . . 3 . . . 2 1 . . . . . . . . . Non-combat 4 | . . . 2 . . . 2 . . . . . . . . . . Combat 2 | . . . 1 . . . . 1 . . . . . . . . . Robot Hacks Applied 6 | . . . 3 . . . 2 1 . . . . . . . . . parse_system 4 | . . . 3 . . . . 1 . . . . . . . . . no_distress 2 | . . . . . . . 2 . . . . . . . . . . Relay Couplers Released . | . . . . . . . . . . . . . . . . . . Fabnet Peak Effective % . | . . . . . . . . . . . . . . . . . . Robots Rewired 14 | . . . . . . . 14 . . . . . . . . . . Allies Hacked . | . . . . . . . . . . . . . . . . . . Hacks Repelled . | . . . . . . . . . . . . . . . . . . Allies | -11 -10 -10 -10 -9 -8 -8 -8 -8 -6 -6 -6 -6 -5 -5 -5 -5 -5 -------- Run | Yrd Mat Min Exi Min Mat Sto Rec Scr Fac Low Low Dat Pro Fac Upp Upp War Total Allies 29 | . . 2 . . . 10 14 . . . . . . 1 1 1 . Largest Group 19 | . . 2 . . . 10 19 18 . . . . . 1 1 1 . Highest-Rated Group 341 | . . 38 . . . 173 341 325 . . . . . 10 49 29 . Highest-Rated Ally 49 | . . 31 . . . 29 34 34 . . . . . 10 49 29 . Total Orders 75 | . . . 1 . . . 19 42 . . . . . 11 . . 2 STAY 24 | . . . . . . . 7 17 . . . . . . . . . ROAM 3 | . . . . . . . . 3 . . . . . . . . . FOLLOW 29 | . . . . . . . 11 18 . . . . . . . . . GUARD 1 | . . . . . . . 1 . . . . . . . . . . EXPLORE 7 | . . . . . . . . 3 . . . . . 3 . . 1 RETURN 11 | . . . 1 . . . . 1 . . . . . 8 . . 1 Ally Attacks 333 | . . 1 . . . . 43 232 . . . . . 57 . . . Total Damage 7511 | . . 20 . . . . 523 4618 . . . . . 2350 . . . Kills 60 | . . . . . . . 8 42 . . . . . 10 . . . Allies Corrupted 1 | . . . . . . . . . . . . . . 1 . . . Allies Melted . | . . . . . . . . . . . . . . . . . . Turrets Deployed 3 | . . . . . . . . 1 . . . . . 2 . . . Intel | -11 -10 -10 -10 -9 -8 -8 -8 -8 -6 -6 -6 -6 -5 -5 -5 -5 -5 ------- Run | Yrd Mat Min Exi Min Mat Sto Rec Scr Fac Low Low Dat Pro Fac Upp Upp War Robot Analysis Total 11 | . 1 . . . . . 4 6 . . . . . . . . . Derelict Logs Recovered 5 | . . . . . . . . . . 2 1 . . . 1 1 . Drone Launches 22 | . . . 3 . . . . 7 . . . . . 11 . . 1 Drone Recoveries 17 | . . . 3 . . . . 5 . . . . . 8 . . 1 Exploration | -11 -10 -10 -10 -9 -8 -8 -8 -8 -6 -6 -6 -6 -5 -5 -5 -5 -5 ------------- Run | Yrd Mat Min Exi Min Mat Sto Rec Scr Fac Low Low Dat Pro Fac Upp Upp War Turns Passed 52359 | . 1760 987 768 412 713 2955 2716 31544 206 1285 367 186 1368 2349 1894 2326 523 Spaces Moved 11133 | 1 636 351 277 102 190 870 930 4120 84 700 193 74 626 811 407 602 159 Core 1036 | . . . . . . . . 919 . . . . . . . 66 51 Treads 9646 | . 631 351 277 102 190 870 930 3201 84 700 193 74 626 811 407 199 . Legs 71 | 1 5 . . . . . . . . . . . . . . 65 . Wheels 380 | . . . . . . . . . . . . . . . . 272 108 Hover . | . . . . . . . . . . . . . . . . . . Flight . | . . . . . . . . . . . . . . . . . . Fastest Speed 50 | 120 120 240 240 320 320 240 240 100 200 140 140 160 160 146 246 50 50 Average Speed 399 | 120 216 240 263 320 320 245 240 669 200 159 159 160 166 192 433 352 298 Slowest Speed 3700 | 120 240 240 320 320 320 320 240 3700 200 160 160 160 180 325 490 2000 3500 Overloaded Moves . | . . . . . . . . . . . . . . . . . . Propulsion Burnouts . | . . . . . . . . . . . . . . . . . . Robots Hopped . | . . . . . . . . . . . . . . . . . . Cave-ins Triggered . | . . . . . . . . . . . . . . . . . . Exploration Rate (%) 56 | 3 92 66 69 23 21 95 97 97 4 79 37 68 80 23 59 68 27 Regions Visited 17 Branch Regions 13 Pre-discovered Areas 10 | . 2 . 1 . . 2 2 . . 1 . 1 . . 1 . . Known Exits Taken 9 | . 1 . . . 1 1 1 1 1 1 1 . 1 . . . . Unknown Exits Taken 8 | 1 . 1 1 1 . . . . . . . 1 . 1 1 1 . Scrap Searched 28 | . . 2 . . . . . 11 . 4 3 . 3 . 3 2 . Spaces Dug 71 | . 12 . . 2 1 2 . . . . 13 . . 32 1 5 3 Terrain Destroyed 567 | . 193 49 . 7 4 23 . 20 . . 31 . 57 115 9 56 3 Melee 19 | . . . . . . 1 . . . . . . . 16 . . 2 Projectile 93 | . . . . 7 4 5 . 10 . . . . . 57 9 1 . AOE 434 | . 193 49 . . . 17 . 5 . . 31 . 57 32 . 50 . Terrain Rammed . | . . . . . . . . . . . . . . . . . . Walls Destroyed . | . . . . . . . . . . . . . . . . . . Machines Disabled . | . . . . . . . . . . . . . . . . . . Actions | -11 -10 -10 -10 -9 -8 -8 -8 -8 -6 -6 -6 -6 -5 -5 -5 -5 -5 --------- Run | Yrd Mat Min Exi Min Mat Sto Rec Scr Fac Low Low Dat Pro Fac Upp Upp War Total 17414 | . 931 486 318 169 278 1531 1343 7178 115 858 243 142 924 1403 497 796 202 Wait 4346 | . 212 111 14 59 47 491 325 2166 14 114 18 69 259 327 37 70 13 Move 11117 | . 635 350 276 101 189 869 929 4119 83 699 192 73 625 811 406 601 159 Hop . | . . . . . . . . . . . . . . . . . . Pick Up 234 | . 15 4 9 . 6 13 2 64 . 20 18 . 5 20 2 56 . Fast Attach 131 | . 1 2 1 . 3 11 4 53 . 2 1 . 3 24 9 16 1 Attach 71 | . 3 4 1 1 4 2 . 17 3 1 . . 4 21 2 4 4 Detach 46 | . 1 1 3 1 2 6 1 11 . . . . 1 14 1 2 2 Swap 169 | . 14 3 5 . 3 26 13 41 2 4 1 . 9 32 13 3 . Drop 204 | . 5 4 6 . 5 28 7 83 1 4 1 . 3 23 3 24 7 Fire 861 | . 43 6 . 7 19 72 32 514 12 13 12 . 9 93 16 9 4 Melee 106 | . . . 3 . . 1 25 10 . . . . 6 38 8 11 4 Ram 2 | . . . . . . . . . . . . . . . . . 2 Kick . | . . . . . . . . . . . . . . . . . . Crush 7 | . 2 1 . . . 1 3 . . . . . . . . . . Escape Stasis 2 | . . . . . . 2 . . . . . . . . . . . Rewire 8 | . . . . . . 1 2 4 . 1 . . . . . . . Trap 6 | . . . . . . . . . . . . . . . . . 6 Miscellaneous 104 | . . . . . . 8 . 96 . . . . . . . . . Route ------- -11/Scrapyard -10/Materials (discovered 6 exits: *Mat x3 / *Min x2 / Sub) -10/Mines (discovered 3 exits: *Mat x2 / *Exi) -10/Exiles -9/Mines -8/Materials -8/Storage (discovered 2 exits: *Fac / *Rec) -8/Recycling (discovered 2 exits: *Fac / *Scr) -8/Scraptown (discovered 2 exits: *Fac x2) -6/Factory (discovered 2 exits: *Low x2) -6/Lower Caves -6/Lower Caves (discovered 2 exits: Fac / *Dat) -6/Data Miner -5/Proximity Caves -5/Factory -5/Upper Caves -5/Upper Caves (discovered 2 exits: [*Fac] / [*War]) -5/Warlord (discovered 1 exit: [*Pro]) History --------- Turn | Location | Event 1 | -11/Scrapyard | Discovered new exit (range 0) 1 | -11/Scrapyard | Entered Materials 196 | -10/Materials | Discovered new exit (range 15) 303 | -10/Materials | Build established: Mutant 524 | -10/Materials | Discovered new exit (range 16) 912 | -10/Materials | Discovered new exit (range 15) 1454 | -10/Materials | Discovered new exit (range 16) 1487 | -10/Materials | Learned Recycling recycling unit intel 1555 | -10/Materials | Identified exit to Materials 1661 | -10/Materials | Learned Materials stockpile data 1735 | -10/Materials | Identified exit to Mines 1735 | -10/Materials | Identified exit to Subcaves 1756 | -10/Materials | Learned 2 Storage zone layouts 1761 | -10/Materials | Entered Mines 1959 | -10/Mines | Found the Drone Emporium 1974 | -10/Mines | Found Prototype Device 1974 | -10/Mines | Identified Thief Drone Bay 2023 | -10/Mines | Discovered exit to Materials (range 7) 2086 | -10/Mines | Received a Rocket Launcher from a helpful Derelict 2174 | -10/Mines | Discovered exit to Materials (range 8) 2415 | -10/Mines | Deemed a non-threat by the Exiles lab entrance 2415 | -10/Mines | Discovered new exit (range 5) 2524 | -10/Mines | Assembled infested the area 2585 | -10/Mines | Lost 4 parts (1p1n2w) 2748 | -10/Mines | Entered Exiles 2818 | -10/Exiles | Met 8R-AWN 2856 | -10/Exiles | Met EX-HEX 2922 | -10/Exiles | Met EX-BIN 2952 | -10/Exiles | Aligned with FarCom system 2955 | -10/Exiles | Given EX-Vault access code 3010 | -10/Exiles | Opened EX-Vault 3048 | -10/Exiles | Found AWS/Thermal 3059 | -10/Exiles | Found 0b10 Alert Chip 3067 | -10/Exiles | Found Deploy-a-Sentry 3071 | -10/Exiles | Found Deploy-a-Sentry 3074 | -10/Exiles | Found Deploy-a-Sentry 3125 | -10/Exiles | Warned to stay clear of 0b10 Research branches 3188 | -10/Exiles | Met EX-DEC 3362 | -10/Exiles | Learned location of Zion (-7) 3478 | -10/Exiles | Discovered new exit (range 14) 3516 | -10/Exiles | Stole three prototypes: AWS/Thermal, 0b10 Alert Chip, Deploy-a-Sentry 3516 | -10/Exiles | Entered Mines 3525 | -9/Mines | Met a Derelict bent on vengeance 3607 | -9/Mines | Discovered new exit (range 16) 3811 | -9/Mines | Excavation squad dispatched 3811 | -9/Mines | A large section of the Mines collapsed 3928 | -9/Mines | Entered Materials 3928 | -8/Materials | Evolved 4 slots: Propulsion x1, Utility x2, Weapon x1 4196 | -8/Materials | Identified exit to Storage 4345 | -8/Materials | Build established: Bomber 4641 | -8/Materials | Entered Storage 4642 | -8/Storage | Identified exit to Recycling 5457 | -8/Storage | Build established: Skirmisher 5459 | -8/Storage | Garrison activated, responded to threat 5777 | -8/Storage | Build established: Scavenger-Skirmisher 5821 | -8/Storage | Repaired Disposable Heat Sink 6544 | -8/Storage | Met 01-MTF 6550 | -8/Storage | Learned Factory trap positions 6626 | -8/Storage | Learned location of Extension (-4) 6748 | -8/Storage | Identified exit to Factory 6949 | -8/Storage | Learned 4 Recycling zone layouts 6956 | -8/Storage | Repaired Hvy. Ion Engine 7008 | -8/Storage | Learned 2 Lower Caves zone layouts 7018 | -8/Storage | Repaired Adv. Beam Rifle 7296 | -8/Storage | Assisted by bots powering up and referring to "LRC-V3" 7575 | -8/Storage | Used back door to open Recycling access 7590 | -8/Storage | Build established: Commander-Skirmisher 7596 | -8/Storage | Entered Recycling 7596 | -8/Recycling | Accompanied by 11 allies (01-MTF) 7597 | -8/Recycling | Identified exit to Factory 7598 | -8/Recycling | Identified exit to Scraptown 7599 | -8/Recycling | Loaded intel: 5 recycling unit locations 7860 | -8/Recycling | Lost 5 allies 8034 | -8/Recycling | Build established: Commander-Mutant 8407 | -8/Recycling | Build established: Commander-Skirmisher 8721 | -8/Recycling | Learned 2 Storage zone layouts 8775 | -8/Recycling | Learned 2 Storage zone layouts 8817 | -8/Recycling | Learned location of 2 exits from Lower Caves 8872 | -8/Recycling | Learned 2 Lower Caves zone layouts 8910 | -8/Recycling | Learned location of 1 exit from Lower Caves 8943 | -8/Recycling | Learned Factory stockpile data 10010 | -8/Recycling | Scanned before Scraplab entrance 10052 | -8/Recycling | Destroyed 01-MTF 10056 | -8/Recycling | Found Prototype Energy Gun 10056 | -8/Recycling | Identified KN-7UR's Autopenetrator 10249 | -8/Recycling | Entered Scraplab 10312 | -8/Recycling | Entered Scraptown 10312 | -8/Scraptown | Accompanied by 18 allies 10312 | -8/Scraptown | System corruption cleaned by C-Scrubber 10630 | -8/Scraptown | Build established: Commander-Tank 10669 | -8/Scraptown | Visited IN-MT5's Study 10703 | -8/Scraptown | Visited Bundlers 10717 | -8/Scraptown | Visited Science Testing Area 10756 | -8/Scraptown | Visited Awakened 10804 | -8/Scraptown | Visited SPCMW 10825 | -8/Scraptown | Visited Symbiants 10893 | -8/Scraptown | Visited Shadow of the Wyrm 12168 | -8/Scraptown | Attacked by Scraptown defenders 12169 | -8/Scraptown | Destroyed Triborg 12242 | -8/Scraptown | Lost 7 allies 12282 | -8/Scraptown | Lost 4 allies 12317 | -8/Scraptown | Destroyed 7 combat bots 12617 | -8/Scraptown | AWS/Thermal suddenly broke down 12847 | -8/Scraptown | DAS Turret deployed 12890 | -8/Scraptown | Lost 5 parts (1p2n1u1w) 13541 | -8/Scraptown | Build established: Scavenger-Mutant 13720 | -8/Scraptown | Found Scrap Suit 13992 | -8/Scraptown | Build established: Scavenger-Scrapper 15247 | -8/Scraptown | Destroyed 7 combat bots 15309 | -8/Scraptown | Build established: Scavenger-Skirmisher 17195 | -8/Scraptown | Found Scrap Suit 17487 | -8/Scraptown | Build established: Scavenger-Scrapper 17703 | -8/Scraptown | Visited Analyses Database 17918 | -8/Scraptown | Visited Chapter 10 17962 | -8/Scraptown | Visited DA-N13 Charitable Foundation 17968 | -8/Scraptown | Found DCF Scrap (27 items) 18003 | -8/Scraptown | Visited Derelict Rescue Squad 18027 | -8/Scraptown | Visited Scrap Suit Storage 18048 | -8/Scraptown | Visited Observation Area 18215 | -8/Scraptown | Visited Curators Association 18238 | -8/Scraptown | Found PL-3XN's Ring of Power 18287 | -8/Scraptown | Found Prototype Slashing Weapon 18287 | -8/Scraptown | Identified DM-GVY's Chainsaw 18827 | -8/Scraptown | Visited Supply Room 18891 | -8/Scraptown | Build established: Scavenger-Mutant 19520 | -8/Scraptown | Found Scrap Suit 19771 | -8/Scraptown | Tech Extrapolator generated special schematic: Machine Rigger 20035 | -8/Scraptown | Build established: Hauler-Mutant 20634 | -8/Scraptown | Found Scrap Suit 22264 | -8/Scraptown | Discovered exit to Factory (range 63) 22511 | -8/Scraptown | Build established: Scavenger-Mutant 22835 | -8/Scraptown | Found Scrap Suit 22941 | -8/Scraptown | Found ID Mask 23113 | -8/Scraptown | Build established: Hauler-Mutant 23116 | -8/Scraptown | Found Siege Cannon 23122 | -8/Scraptown | Found Siege Articulator 35043 | -8/Scraptown | Visited LU-1G1's Boring Crew 35531 | -8/Scraptown | Found Prototype Special Weapon 35531 | -8/Scraptown | Identified LU-1G1's Laser Shovel 41719 | -8/Scraptown | Found Scrap Suit 41725 | -8/Scraptown | Found Scrap Suit 41757 | -8/Scraptown | Found Scrap Suit 41856 | -8/Scraptown | Entered Factory 41856 | -6/Factory | Evolved 4 slots: Propulsion x1, Utility x2, Weapon x1 41857 | -6/Factory | Identified exit to Lower Caves 41858 | -6/Factory | Loaded intel: 104 trap records 41858 | -6/Factory | FarCom data flow suspended 42062 | -6/Factory | Entered Lower Caves 42062 | -6/Lower Caves | Spotted SR-NT1(f) 42063 | -6/Lower Caves | Identified exit to Lower Caves 42064 | -6/Lower Caves | Encountered a Master Thief 42066 | -6/Lower Caves | Destroyed SR-NT1(f) 42196 | -6/Lower Caves | Build established: Scavenger-Scrapper 42580 | -6/Lower Caves | Learned Factory stockpile data 43347 | -6/Lower Caves | Entered another Lower Caves area 43348 | -6/Lower Caves | Identified exit to Data Miner 43348 | -6/Lower Caves | Identified exit to Factory 43401 | -6/Lower Caves | Encountered a Warlord checkpoint 43596 | -6/Lower Caves | Spotted PD-Y7A(f) 43597 | -6/Lower Caves | Encountered a Master Thief 43597 | -6/Lower Caves | Spotted DZ-3I5(f) 43598 | -6/Lower Caves | Encountered a Master Thief 43598 | -6/Lower Caves | Spotted F1-DVH(f) 43599 | -6/Lower Caves | Encountered a Master Thief 43601 | -6/Lower Caves | Scrap Suit stolen by Master Thief 43602 | -6/Lower Caves | Spotted DB-UAW(f) 43603 | -6/Lower Caves | Destroyed PD-Y7A(f) 43603 | -6/Lower Caves | Encountered a Master Thief 43604 | -6/Lower Caves | Fission Core stolen by Master Thief 43607 | -6/Lower Caves | Adv. Sensor Array stolen by Master Thief 43714 | -6/Lower Caves | Entered Data Miner 43714 | -6/Data Miner | Discovered new exit (range 6) 43745 | -6/Data Miner | Met Data Miner 43800 | -6/Data Miner | Learned location of Section 7 (-2) 43833 | -6/Data Miner | Received God Mode back door access code from Data Miner 43900 | -6/Data Miner | Entered Proximity Caves 45006 | -5/Proximity Caves | Spotted B-75 Beast 45236 | -5/Proximity Caves | Discovered exit to Factory (range 15) 45268 | -5/Proximity Caves | Entered Factory 45268 | -5/Factory | Evolved 2 slots: Utility x2 45866 | -5/Factory | Found Heavy Servo Lattice 46370 | -5/Factory | Fabricated IN-MT5's Pitchfork "Insurrection" (x1) 46542 | -5/Factory | Build established: Scavenger-Tank 46611 | -5/Factory | Cargo convoy interrupted 46649 | -5/Factory | DAS Turret deployed 46676 | -5/Factory | Found Prototype Launcher 46676 | -5/Factory | Identified Ragnarok Missile Launcher 46678 | -5/Factory | Lost 4 parts (2n1u1w) 46689 | -5/Factory | Found Prototype Launcher 46689 | -5/Factory | Identified Com. Tesla Bomb Launcher 46728 | -5/Factory | Found PL-3XN's Ring of Power 46731 | -5/Factory | Found Prototype Device 46731 | -5/Factory | Identified Exp. Force Field 46734 | -5/Factory | Found Ragnarok Missile Launcher 46737 | -5/Factory | Found Exp. Force Field 46747 | -5/Factory | Found Exp. Force Field 46754 | -5/Factory | Found Exp. Force Field 46757 | -5/Factory | Found Ragnarok Missile Launcher 46768 | -5/Factory | First assault squad dispatched 46776 | -5/Factory | Found Com. Tesla Bomb Launcher 46795 | -5/Factory | Incoming assault squad redirected 46827 | -5/Factory | Found Com. Tesla Bomb Launcher 46885 | -5/Factory | Tech Extrapolator generated special schematic: Energy Deflector 46942 | -5/Factory | Build established: Scrapper 47235 | -5/Factory | Reprogrammed and armed K-01 Serf 47378 | -5/Factory | Incoming investigation squad redirected 47383 | -5/Factory | Incoming assault squad redirected 47398 | -5/Factory | Discovered new exit (range 9) 47448 | -5/Factory | DAS Turret deployed 47472 | -5/Factory | ID Mask engaged 47475 | -5/Factory | Lost 5 parts (1p2n2u) 47614 | -5/Factory | ID Mask no longer valid 47617 | -5/Factory | Entered Upper Caves 47776 | -5/Upper Caves | Lost 4 parts (2n1u1w) 48054 | -5/Upper Caves | Build established: Mutant 48491 | -5/Upper Caves | Attracted the attention of an 0b10 checkpoint 48689 | -5/Upper Caves | Learned location of Armory (-4) 49492 | -5/Upper Caves | Discovered new exit (range 5) 49511 | -5/Upper Caves | Entered another Upper Caves area 49518 | -5/Upper Caves | Attracted the attention of an 0b10 checkpoint 49633 | -5/Upper Caves | Discovered new exit (range 5) 49688 | -5/Upper Caves | Build established: Gunner 50025 | -5/Upper Caves | Spotted B-75 Beast 50106 | -5/Upper Caves | Destroyed B-75 Beast 50132 | -5/Upper Caves | Lost 3 parts (1p1u1w) 50288 | -5/Upper Caves | Learned Factory stockpile data 50399 | -5/Upper Caves | Build established: Mutant 50549 | -5/Upper Caves | Core integrity fell below 50% 50571 | -5/Upper Caves | Lost 3 parts (1p1n1u) 50623 | -5/Upper Caves | Lost 4 parts (1p2u1w) 50628 | -5/Upper Caves | System corruption reached 10% 50639 | -5/Upper Caves | System corruption reached 30% 51040 | -5/Upper Caves | Build established: Hauler-Mutant 51498 | -5/Upper Caves | Discovered new exit (range 15) 51499 | -5/Upper Caves | Spotted 8D-849(f) 51500 | -5/Upper Caves | Spotted UT-NW0(f) 51501 | -5/Upper Caves | Encountered a Master Thief 51501 | -5/Upper Caves | Encountered a Master Thief 51501 | -5/Upper Caves | Encountered a Master Thief 51501 | -5/Upper Caves | Encountered a Master Thief 51502 | -5/Upper Caves | Spotted TE-MJ7(f) 51503 | -5/Upper Caves | Encountered a Master Thief 51504 | -5/Upper Caves | Released all parts (8) 51504 | -5/Upper Caves | Dirty Bomb Trap stolen by Master Thief 51504 | -5/Upper Caves | Fire Trap stolen by Master Thief 51505 | -5/Upper Caves | Spotted ND-UIU(f) 51505 | -5/Upper Caves | Spotted WN-Y6F(f) 51508 | -5/Upper Caves | Carbon-fiber Leg stolen by Master Thief 51511 | -5/Upper Caves | Carbon-fiber Leg stolen by Master Thief 51521 | -5/Upper Caves | Hrd. Heavy Armor Plating stolen by Master Thief 51837 | -5/Upper Caves | Entered Warlord 51963 | -5/Warlord | System corruption cleaned by Quarantine Array 51975 | -5/Warlord | Attacked by Warlord forces 52063 | -5/Warlord | Discovered new exit (range 15) 52149 | -5/Warlord | Warlord's base attacked by MAIN.C 52321 | -5/Warlord | Core integrity fell below 20% 52355 | -5/Warlord | Spotted KS-9GJ(g) 52359 | -5/Warlord | Spotted 5Y-LBC(g) 52360 | -5/Warlord | Spotted ZR-E1Z(B) 52360 | -5/Warlord | Destroyed by TB-PYB(Y) with Heavy Autocannon Last Messages --------------- 52331_ Humpback destroyed. 52331_ Critical hit (Blast). 52332_ Dropped Com. Tesla Bomb Launcher. 52332_ Com. Tesla Bomb Launcher crushed and broken. 52333_ Acquired 3 matter. 52335_ Slammed into K0-UML(Y). 52335_ Com. Battery destroyed. 52335_ System corrupted by crushing effect (+4). 52336_ Slammed into K0-UML(Y). 52336_ K0-UML(Y) knocked back. 52339_ System corrupted: Energy discharge (-34). 52339_ ANNOUNCEMENT: MAIN.C reinforcements approaching through caves, arriving soon. 52339_ Knocked back. 52339_ Acquired 10 matter. 52349_ ANNOUNCEMENT: Detected 1 Programmer squad, 3 Grunt squads. 52352_ Acquired Mak. Sword. 52356_ Triggered Fire Trap. 52356_ Burning plasma bursts from the floor. 52360_ Mak. Sword destroyed. Map ----- +----------------------------------------------------+ | | | ?????????????????###############?????????????????? | | ?????????????????###############?????????????????? | | ?????????????????## ##??#############??? | | ?????????????????## #################### | | ?????????????????## """"" ######"##" #&!!##### | | ?????????????????## """"" + #=!]&&^%!] | | ?????????????????## """"" # # "!!]|!^ | | ?????????????????## # "#############!## | | ?????????????????## # ################# | | ?????????????????############## ###???????????### | | ?????????????????######### ##??????????????? | | ???????????????????##** # ##??????????????? | | ???????????????????## + ###??????????????# | | ???????????????????## # ###??????????????# | | ???????????????????##/ # ##???????????????# | | ???????????????????#######^ ^ ##???????????????# | | ???????????????????####### ^ ^ ##???????????????# | | ????????????????????????## ##???????????????# | | ????????????????????????## ##???????????????# | | ????????????????????????## ###??????????????# | | ????????????????????????## ###??????????????? | | ????????????????????????## ##??????????????? | | ???????????????????####### ###??????????????? | | ???????????????????####### ###??????????????? | | ???????????????????## @ ##??????????????? | | ???????????????????## % ###??????????????? | | ???????????????????## ###??????????????? | | ???????????????????## g##???????????????? | | ???????????????????## ##???????????????? | | ???????????????????## ##??????"#####???? | | ???????????????????## #;## ##??????"######### | | ???????????????????## # % = ???? "" "##### | | ???????????????????## #% ?% # ? "" """""" | | ???????????????????## ?= ? ; "" """""" | | ???????????????????## ?%Y?? % !/^ ^ | | ???????????????????# g? !?% !%/[ ^ | | ???????????????????## ? Y ? %%+ | | ???????????????????## ?? ????? + ^ | | ???????????????????## %[?? B ????? # "" """""" | | ??????????????????????? ???B?????? # ? "" """""" | | ?????????????????????????????????????? "" "##### | | ???????????????????????????????????????""######### | | ???????????????????????????????????????""#####???? | | ?????????????????????????????????????????????????? | | ?????????????????????????????????????????????????? | | ?????????????????????????????????????????????????? | | ?????????????????????????????????????????????????? | | ?????????????????????????????????????????????????? | | ?????????????????????????????????????????????????? | +----------------------------------------------------+ Best States ------------- Heat Dissipation 59 Coolant Potential 80 Energy Generation 21 Energy Capacity 900 Matter Stores 500 Matter Capacity 500 Sight Range 22 Robot Scan Range 16 Terrain Scan Range 14 Terrain Scan Density 10 Power Amplification 30 Armor Coverage 600 Resistance: TH 25 Resistance: EM 15 Evasion (%) 55 Targeting Accuracy 6 Recoil Reduction 4 Energy Filtering 50 Particle Charging 20 Kinecelleration 40 Salvage Targeting 8 Offensive Hacking 10 Item Schematics ----------------- IN-MT5's Pitchfork "Insurrection" | -8/Scraptown | Archive Mak. Leg | -8/Scraptown | Extrapolated Spk. Treads | -8/Scraptown | Extrapolated Machine Rigger | -8/Scraptown | Extrapolated Mak. Power Source | -8/Scraptown | Extrapolated 0b10 Decoder Chip [Skirmisher] | -8/Scraptown | Extrapolated 0b10 Decoder Chip [Generic] | -8/Scraptown | Extrapolated 0b10 Decoder Chip [Scout] | -8/Scraptown | Extrapolated Multitool | -8/Scraptown | Extrapolated Mak. Light Armor Plating | -6/Factory | Extrapolated Mak. Shrapnel Gun | -6/Lower Caves | Extrapolated Spk. Medium Treads | -6/Lower Caves | Extrapolated Mak. Coolant Network | -6/Lower Caves | Extrapolated Mak. ECM Suite | -6/Lower Caves | Extrapolated Mak. Medium Armor Plating | -6/Lower Caves | Extrapolated Mak. Ablative Armor | -6/Lower Caves | Extrapolated Beamcaster | -6/Lower Caves | Extrapolated Cld. Plasma Rifle | -6/Data Miner | Free Combat Drone Bay | -6/Data Miner | Free Cld. Nuclear Pulse Thruster | -6/Data Miner | Free Imp. Thermal Defense Suite | -6/Data Miner | Free Lgt. Regenerative Plating | -6/Data Miner | Free Impulse Thruster | -6/Data Miner | Free Adv. Actuator Array | -6/Data Miner | Free Adv. VSS Leg | -6/Data Miner | Free Adv. Medium Treads | -6/Data Miner | Free Antimissile System | -6/Data Miner | Free Phase Gun | -6/Data Miner | Free Mak. Propulsion Shielding | -5/Factory | Extrapolated Mak. Thermal Plating | -5/Factory | Extrapolated Energy Deflector | -5/Factory | Extrapolated Tactical Coordination Suite | -5/Factory | Extrapolated Mak. Core Shielding | -5/Factory | Extrapolated Mak. Targeting Computer | -5/Upper Caves | Extrapolated Robot Schematics ------------------ G-50 Soldier | -6/Data Miner | Free L-41 Fighter | -6/Data Miner | Free S-27 Virus | -6/Data Miner | Free R-10 Processor | -6/Data Miner | Free Fabricated ------------ IN-MT5's Pitchfork "Insurrection" | x1 | -5/Factory Alien Tech Used ----------------- None Achievements -------------- None Challenges ------------ None Game ------ Seed SpacefoldGodGuard Manual? 0 Play Time 03:43:53 Cumulative 337.0 hours Start 2024.10.15 @ 17:21:04 End 2024.10.18 @ 15:59:56 Sessions 9 Manual Loads 0 Difficulty Rogue Special Mode None Game No. 168 Rogue 168 Adventurer 0 Explorer 0 Win Type - Total 9 Types 5/1/3/0/0/0/0/0/0 Lore% 84 Gallery% 88 Achievement% 73 Wizard Run 0 Options --------- Layout 0 ASCII 0 Keyboard 0 Movement Mouse Keybinds 0 Fullscreen 2 Font 12/Smallcaps Map View 83x54 Zoom Use 0% Tactical HUD 1 Map Filters NONE Filters NONE Steam 1 RUN: eb68f691-0077-4f60-9497-d25659f18107